[Event "*** Titled Tuesday Blitz"]
[Site "Chess.com"]
[Date "2021.04.06"]
[Round "11"]
[White "chessdiamant"]
[Black "NiranjanNavalgund"]
[Result "0-1"]
[WhiteElo "2378"]
[BlackElo "2504"]
[TimeControl "180+1"]
[EndTime "12:05:57 PDT"]
[Termination "NiranjanNavalgund won by checkmate"]

1. e4 {[%clk 0:03:00.8]} 1... e5 {[%clk 0:02:59.6]} 2. Nf3 {[%clk 0:03:00.6]}
2... d5 {[%clk 0:02:59.6]} 3. Nxe5 {[%clk 0:02:55.8]} 3... dxe4 {[%clk 0:02:59]}
4. Nc3 {[%clk 0:02:51]} 4... Nf6 {[%clk 0:02:58.9]} 5. Bc4 {[%clk 0:02:50.2]}
5... Bc5 {[%clk 0:02:57.6]} 6. O-O {[%clk 0:02:09.7]} 6... O-O {[%clk
0:02:55.4]} 7. d4 {[%clk 0:02:06.1]} 7... Bxd4 {[%clk 0:02:54.3]} 8. Bf4 {[%clk
0:01:58.2]} 8... Nc6 {[%clk 0:02:51.2]} 9. Nxc6 {[%clk 0:01:56.3]} 9... bxc6
{[%clk 0:02:52.1]} 10. Qe2 {[%clk 0:01:49.1]} 10... Bf5 {[%clk 0:02:50.5]} 11.
Rad1 {[%clk 0:01:46]} 11... c5 {[%clk 0:02:50.8]} 12. Nb5 {[%clk 0:01:45.7]}
12... Qe7 {[%clk 0:02:49.5]} 13. Nxd4 {[%clk 0:01:45.1]} 13... cxd4 {[%clk
0:02:49.2]} 14. Rxd4 {[%clk 0:01:45.3]} 14... Qc5 {[%clk 0:02:48]} 15. Be3
{[%clk 0:01:19.1]} 15... Qe5 {[%clk 0:02:41.3]} 16. h3 {[%clk 0:01:15.5]} 16...
Kh8 {[%clk 0:02:33.5]} 17. c3 {[%clk 0:01:14.3]} 17... Rg8 {[%clk 0:02:33.8]}
18. Rd2 {[%clk 0:01:06]} 18... g5 {[%clk 0:02:33.1]} 19. Bd4 {[%clk 0:01:05.3]}
19... Qe7 {[%clk 0:02:33]} 20. f3 {[%clk 0:00:45.5]} 20... e3 {[%clk 0:02:26.6]}
21. Qxe3 {[%clk 0:00:43]} 21... Qxe3+ {[%clk 0:02:26.5]} 22. Bxe3 {[%clk
0:00:43.9]} 22... Kg7 {[%clk 0:02:26.3]} 23. Bxg5 {[%clk 0:00:42.1]} 23... Kg6
{[%clk 0:02:26]} 24. Bxf6 {[%clk 0:00:31.6]} 24... Kxf6 {[%clk 0:02:26.9]} 25.
Kh2 {[%clk 0:00:28.9]} 25... h5 {[%clk 0:02:26.2]} 26. g4 {[%clk 0:00:26.7]}
26... Be6 {[%clk 0:02:26.6]} 27. Bxe6 {[%clk 0:00:26.1]} 27... fxe6 {[%clk
0:02:27.5]} 28. Re2 {[%clk 0:00:21.9]} 28... Rae8 {[%clk 0:02:23.1]} 29. Rfe1
{[%clk 0:00:21.3]} 29... Rg5 {[%clk 0:02:15]} 30. f4 {[%clk 0:00:20.7]} 30...
Ra5 {[%clk 0:02:14.3]} 31. a3 {[%clk 0:00:20.6]} 31... Rb5 {[%clk 0:02:12.7]}
32. b4 {[%clk 0:00:20.4]} 32... a5 {[%clk 0:02:12.8]} 33. c4 {[%clk 0:00:18.1]}
33... Rb6 {[%clk 0:02:12]} 34. b5 {[%clk 0:00:18.2]} 34... Rd6 {[%clk
0:02:07.9]} 35. a4 {[%clk 0:00:16]} 35... Rd4 {[%clk 0:02:07.5]} 36. Re4 {[%clk
0:00:15.4]} 36... Rd3 {[%clk 0:02:05.7]} 37. f5 {[%clk 0:00:13.1]} 37... e5
{[%clk 0:02:04.4]} 38. R1e3 {[%clk 0:00:13.2]} 38... Rd1 {[%clk 0:02:02.8]} 39.
Kg3 {[%clk 0:00:11.1]} 39... h4+ {[%clk 0:02:00.5]} 40. Kxh4 {[%clk 0:00:08.7]}
40... Rg1 {[%clk 0:02:00.9]} 41. g5+ {[%clk 0:00:04.9]} 41... Kxf5 {[%clk
0:02:01.1]} 42. Rg4 {[%clk 0:00:05.6]} 42... Rh8# {[%clk 0:02:00.5]} 0-1

[Event "*** Titled Tuesday Blitz"]
[Site "Chess.com"]
[Date "2021.04.06"]
[Round "11"]
[White "zmeeed67"]
[Black "eljanov"]
[Result "0-1"]
[WhiteElo "2477"]
[BlackElo "2865"]
[TimeControl "180+1"]
[EndTime "12:06:07 PDT"]
[Termination "eljanov won by resignation"]

1. d4 {[%clk 0:03:00.9]} 1... Nf6 {[%clk 0:02:59.6]} 2. c4 {[%clk 0:03:01.5]}
2... e6 {[%clk 0:02:59.8]} 3. Nc3 {[%clk 0:03:02]} 3... Bb4 {[%clk 0:02:59.5]}
4. f3 {[%clk 0:03:02.3]} 4... c5 {[%clk 0:02:54.4]} 5. d5 {[%clk 0:03:02.2]}
5... O-O {[%clk 0:02:52.8]} 6. e4 {[%clk 0:03:01.5]} 6... d6 {[%clk 0:02:53.1]}
7. Ne2 {[%clk 0:02:52.5]} 7... b5 {[%clk 0:02:51.4]} 8. Ng3 {[%clk 0:02:49.6]}
8... Re8 {[%clk 0:02:43.1]} 9. Bd2 {[%clk 0:02:45]} 9... Bxc3 {[%clk 0:02:31.1]}
10. Bxc3 {[%clk 0:02:44.8]} 10... b4 {[%clk 0:02:31.2]} 11. Bd2 {[%clk
0:02:28.2]} 11... exd5 {[%clk 0:02:31.4]} 12. cxd5 {[%clk 0:02:29.1]} 12... Nxd5
{[%clk 0:02:30.8]} 13. Be2 {[%clk 0:02:29.7]} 13... Ne7 {[%clk 0:02:18.5]} 14.
O-O {[%clk 0:02:28.7]} 14... Ba6 {[%clk 0:02:19.1]} 15. Bg5 {[%clk 0:01:51.4]}
15... Bxe2 {[%clk 0:02:05.9]} 16. Qxe2 {[%clk 0:01:52.3]} 16... f6 {[%clk
0:02:00.1]} 17. Be3 {[%clk 0:01:36.9]} 17... Nbc6 {[%clk 0:01:52.2]} 18. Rad1
{[%clk 0:01:26.6]} 18... Qc7 {[%clk 0:01:52.5]} 19. h4 {[%clk 0:00:44.5]} 19...
Rad8 {[%clk 0:01:49.9]} 20. Qf2 {[%clk 0:00:27]} 20... Ne5 {[%clk 0:01:34.9]}
21. h5 {[%clk 0:00:21.5]} 21... h6 {[%clk 0:01:35.2]} 22. Qe2 {[%clk 0:00:14.9]}
22... a5 {[%clk 0:01:31.5]} 23. f4 {[%clk 0:00:14.6]} 23... Nf7 {[%clk
0:01:31.8]} 24. Qg4 {[%clk 0:00:09]} 24... Qc8 {[%clk 0:01:28.1]} 25. Qh4 {[%clk
0:00:08.1]} 25... Qe6 {[%clk 0:01:27.2]} 26. Rde1 {[%clk 0:00:03.2]} 26... a4
{[%clk 0:01:18.1]} 27. f5 {[%clk 0:00:01.6]} 27... Qxa2 {[%clk 0:01:17.4]} 28.
Qg4 {[%clk 0:00:01.9]} 28... Ne5 {[%clk 0:01:15.1]} 29. Ne2 {[%clk 0:00:02.6]}
0-1

[Event "*** Titled Tuesday Blitz"]
[Site "Chess.com"]
[Date "2021.04.06"]
[Round "11"]
[White "731291"]
[Black "kleopl"]
[Result "1-0"]
[WhiteElo "2668"]
[BlackElo "2549"]
[TimeControl "180+1"]
[EndTime "12:06:10 PDT"]
[Termination "731291 won by resignation"]

1. e4 {[%clk 0:03:00.9]} 1... c6 {[%clk 0:03:00]} 2. Nc3 {[%clk 0:03:01.8]} 2...
d5 {[%clk 0:03:00.9]} 3. Nf3 {[%clk 0:02:59.2]} 3... a6 {[%clk 0:03:00.7]} 4. g3
{[%clk 0:02:55.7]} 4... Bg4 {[%clk 0:02:54]} 5. h3 {[%clk 0:02:54.2]} 5... Bxf3
{[%clk 0:02:53.7]} 6. Qxf3 {[%clk 0:02:53.9]} 6... e6 {[%clk 0:02:52.8]} 7. Bg2
{[%clk 0:02:51.8]} 7... Nf6 {[%clk 0:02:51.3]} 8. O-O {[%clk 0:02:51.5]} 8...
Bc5 {[%clk 0:02:45.7]} 9. exd5 {[%clk 0:02:42.9]} 9... cxd5 {[%clk 0:02:44.4]}
10. Ne2 {[%clk 0:02:43.1]} 10... Nc6 {[%clk 0:02:43.3]} 11. g4 {[%clk
0:02:38.3]} 11... O-O {[%clk 0:02:35.8]} 12. c3 {[%clk 0:02:36.2]} 12... d4
{[%clk 0:02:22.9]} 13. d3 {[%clk 0:02:21.8]} 13... dxc3 {[%clk 0:02:10.8]} 14.
bxc3 {[%clk 0:02:22.7]} 14... Ne5 {[%clk 0:02:01.8]} 15. Qg3 {[%clk 0:02:22.1]}
15... Bd6 {[%clk 0:01:48.8]} 16. Bf4 {[%clk 0:02:19.2]} 16... Qc7 {[%clk
0:01:43]} 17. Rab1 {[%clk 0:02:13.1]} 17... Rab8 {[%clk 0:01:42.3]} 18. c4
{[%clk 0:02:03.2]} 18... Nfd7 {[%clk 0:01:38.3]} 19. Rfc1 {[%clk 0:02:00.3]}
19... f6 {[%clk 0:01:23]} 20. c5 {[%clk 0:01:56.8]} 20... Nxc5 {[%clk
0:00:55.1]} 21. d4 {[%clk 0:01:55.2]} 21... b6 {[%clk 0:00:41.6]} 22. dxe5
{[%clk 0:01:40.6]} 22... fxe5 {[%clk 0:00:41]} 23. Be3 {[%clk 0:01:38]} 23...
Qe7 {[%clk 0:00:35]} 24. Rd1 {[%clk 0:01:32.6]} 24... Rfd8 {[%clk 0:00:27.8]}
25. Nc3 {[%clk 0:01:27.3]} 25... e4 {[%clk 0:00:23.7]} 26. Rxd6 {[%clk
0:01:15.7]} 26... Qxd6 {[%clk 0:00:20.5]} 27. Bf4 {[%clk 0:01:04.3]} 27... Qd3
{[%clk 0:00:16.9]} 28. Bxb8 {[%clk 0:01:03.5]} 1-0

[Event "*** Titled Tuesday Blitz"]
[Site "Chess.com"]
[Date "2021.04.06"]
[Round "11"]
[White "NTBT_DHS"]
[Black "eldur16"]
[Result "1-0"]
[WhiteElo "2734"]
[BlackElo "2597"]
[TimeControl "180+1"]
[EndTime "12:06:12 PDT"]
[Termination "NTBT_DHS won by resignation"]

1. e4 {[%clk 0:03:00.9]} 1... Nf6 {[%clk 0:02:59.9]} 2. e5 {[%clk 0:03:00.3]}
2... Nd5 {[%clk 0:03:00]} 3. Nf3 {[%clk 0:03:01]} 3... d6 {[%clk 0:02:59.9]} 4.
Nc3 {[%clk 0:03:01.5]} 4... Nxc3 {[%clk 0:02:58.9]} 5. dxc3 {[%clk 0:03:01.7]}
5... Nc6 {[%clk 0:02:58.3]} 6. Bb5 {[%clk 0:03:01.2]} 6... e6 {[%clk 0:02:54.2]}
7. O-O {[%clk 0:03:00.5]} 7... Be7 {[%clk 0:02:53.1]} 8. Bf4 {[%clk 0:02:59.4]}
8... O-O {[%clk 0:02:52.4]} 9. Re1 {[%clk 0:02:59.2]} 9... dxe5 {[%clk
0:02:50.6]} 10. Nxe5 {[%clk 0:02:58.8]} 10... Nxe5 {[%clk 0:02:50.2]} 11. Bxe5
{[%clk 0:02:58.7]} 11... c6 {[%clk 0:02:43.7]} 12. Bd3 {[%clk 0:02:58]} 12...
Bf6 {[%clk 0:02:37]} 13. Qf3 {[%clk 0:02:47.9]} 13... Bxe5 {[%clk 0:02:34.6]}
14. Rxe5 {[%clk 0:02:48.8]} 14... Qf6 {[%clk 0:02:25.1]} 15. Qe4 {[%clk
0:02:34.3]} 15... g6 {[%clk 0:02:23.1]} 16. Re1 {[%clk 0:02:33.2]} 16... Bd7
{[%clk 0:02:09.5]} 17. Re3 {[%clk 0:02:32.5]} 17... Rfd8 {[%clk 0:02:04.4]} 18.
h4 {[%clk 0:02:32.2]} 18... Be8 {[%clk 0:02:00.5]} 19. h5 {[%clk 0:02:31.8]}
19... Rd5 {[%clk 0:01:58.1]} 20. f4 {[%clk 0:02:21.9]} 20... Rad8 {[%clk
0:01:53]} 21. hxg6 {[%clk 0:02:16.8]} 21... hxg6 {[%clk 0:01:52.1]} 22. Rf3
{[%clk 0:02:16.7]} 22... c5 {[%clk 0:01:45.2]} 23. c4 {[%clk 0:02:13]} 23... Rd4
{[%clk 0:01:35.7]} 24. Qe3 {[%clk 0:02:02.7]} 24... b6 {[%clk 0:01:33.7]} 25. f5
{[%clk 0:01:57.9]} 25... gxf5 {[%clk 0:01:20.4]} 26. Bxf5 {[%clk 0:01:56]} 26...
Rd1+ {[%clk 0:00:56.9]} 27. Kh2 {[%clk 0:01:54.3]} 27... Bc6 {[%clk 0:00:54.9]}
28. Rg3+ {[%clk 0:01:49.8]} 28... Kf8 {[%clk 0:00:51.5]} 29. Bxe6 {[%clk
0:01:47.2]} 29... R8d4 {[%clk 0:00:15.7]} 30. Reg5 {[%clk 0:01:37.5]} 30... Rh4+
{[%clk 0:00:15]} 31. Bh3 {[%clk 0:01:37.7]} 31... Rxh3+ {[%clk 0:00:11.8]} 32.
Rxh3 {[%clk 0:01:32.6]} 32... Qd6+ {[%clk 0:00:11.7]} 33. Qg3 {[%clk 0:01:27.1]}
33... Qxg3+ {[%clk 0:00:11.6]} 34. Rhxg3 {[%clk 0:01:26.9]} 34... Rd2 {[%clk
0:00:12.2]} 35. Rg8+ {[%clk 0:01:25.4]} 35... Ke7 {[%clk 0:00:12.4]} 36. Rc8
{[%clk 0:01:26.3]} 36... Bd7 {[%clk 0:00:12.2]} 37. Rc7 {[%clk 0:01:26.6]} 37...
Rxc2 {[%clk 0:00:12.1]} 38. Rd3 {[%clk 0:01:26.9]} 1-0

[Event "*** Titled Tuesday Blitz"]
[Site "Chess.com"]
[Date "2021.04.06"]
[Round "11"]
[White "madamDD"]
[Black "Deepweb2020"]
[Result "0-1"]
[WhiteElo "2373"]
[BlackElo "2512"]
[TimeControl "180+1"]
[EndTime "12:06:12 PDT"]
[Termination "Deepweb2020 won by resignation"]

1. e4 {[%clk 0:02:58.4]} 1... c6 {[%clk 0:02:57.9]} 2. d4 {[%clk 0:02:57.2]}
2... d5 {[%clk 0:02:58.8]} 3. e5 {[%clk 0:02:57.1]} 3... c5 {[%clk 0:02:59]} 4.
dxc5 {[%clk 0:02:55.9]} 4... e6 {[%clk 0:02:59.5]} 5. Nf3 {[%clk 0:02:52.3]}
5... Bxc5 {[%clk 0:03:00]} 6. a3 {[%clk 0:02:52.3]} 6... Ne7 {[%clk 0:02:58.6]}
7. Bd3 {[%clk 0:02:47]} 7... Nbc6 {[%clk 0:02:59]} 8. b4 {[%clk 0:02:44]} 8...
Bb6 {[%clk 0:02:57.2]} 9. O-O {[%clk 0:02:39.6]} 9... O-O {[%clk 0:02:56]} 10.
Bxh7+ {[%clk 0:02:21.2]} 10... Kxh7 {[%clk 0:02:54.2]} 11. Ng5+ {[%clk
0:02:20.7]} 11... Kg6 {[%clk 0:02:43.2]} 12. Qg4 {[%clk 0:02:06]} 12... Nxe5
{[%clk 0:02:40.6]} 13. Qg3 {[%clk 0:01:56.6]} 13... Nf5 {[%clk 0:02:40.6]} 14.
Qxe5 {[%clk 0:01:43.4]} 14... f6 {[%clk 0:02:39.7]} 15. Qe2 {[%clk 0:01:32.2]}
15... fxg5 {[%clk 0:02:39]} 16. Bb2 {[%clk 0:01:30]} 16... Bd7 {[%clk
0:02:28.7]} 17. Nd2 {[%clk 0:01:29.1]} 17... Bc7 {[%clk 0:02:23.2]} 18. Rae1
{[%clk 0:01:25]} 18... Qe7 {[%clk 0:02:23.1]} 19. Qd3 {[%clk 0:01:19]} 19... Kf7
{[%clk 0:02:10.4]} 20. g4 {[%clk 0:01:03.7]} 20... Nh4 {[%clk 0:02:09.7]} 21.
Qc3 {[%clk 0:01:03.3]} 21... Bb5 {[%clk 0:01:44.4]} 22. Qxg7+ {[%clk 0:00:19.2]}
22... Ke8 {[%clk 0:01:17.3]} 23. c4 {[%clk 0:00:18.7]} 23... Qxg7 {[%clk
0:00:57.2]} 24. Bxg7 {[%clk 0:00:18]} 24... Rg8 {[%clk 0:00:57.4]} 25. cxb5
{[%clk 0:00:16.6]} 25... Rxg7 {[%clk 0:00:57.6]} 26. Nb3 {[%clk 0:00:16.5]}
26... Nf3+ {[%clk 0:00:53.2]} 0-1

[Event "*** Titled Tuesday Blitz"]
[Site "Chess.com"]
[Date "2021.04.06"]
[Round "11"]
[White "DKmirl"]
[Black "Jbd735"]
[Result "0-1"]
[WhiteElo "1923"]
[BlackElo "2462"]
[TimeControl "180+1"]
[EndTime "12:06:12 PDT"]
[Termination "Jbd735 won by checkmate"]

1. d4 {[%clk 0:03:00.9]} 1... d5 {[%clk 0:02:59.7]} 2. c4 {[%clk 0:03:00.9]}
2... c6 {[%clk 0:03:00.1]} 3. Nf3 {[%clk 0:03:01.1]} 3... e6 {[%clk 0:03:00]} 4.
g3 {[%clk 0:03:01.7]} 4... Nf6 {[%clk 0:02:59.6]} 5. Bg2 {[%clk 0:03:02.3]} 5...
dxc4 {[%clk 0:03:00.2]} 6. O-O {[%clk 0:03:01.2]} 6... b5 {[%clk 0:03:00.3]} 7.
a4 {[%clk 0:02:58.7]} 7... Bb7 {[%clk 0:02:59.7]} 8. Ne5 {[%clk 0:02:57.1]} 8...
Nd5 {[%clk 0:02:58.3]} 9. e4 {[%clk 0:02:53.9]} 9... Nb4 {[%clk 0:02:46.9]} 10.
Nc3 {[%clk 0:02:43.3]} 10... a6 {[%clk 0:02:41.7]} 11. Re1 {[%clk 0:01:56.3]}
11... Nd7 {[%clk 0:02:38.7]} 12. Nxd7 {[%clk 0:01:27.3]} 12... Qxd7 {[%clk
0:02:39.6]} 13. d5 {[%clk 0:01:28]} 13... Be7 {[%clk 0:02:12.8]} 14. dxc6 {[%clk
0:01:24.1]} 14... Qxc6 {[%clk 0:02:01.9]} 15. axb5 {[%clk 0:01:02.6]} 15... axb5
{[%clk 0:02:02.8]} 16. Rxa8+ {[%clk 0:01:02.7]} 16... Bxa8 {[%clk 0:02:03.4]}
17. Qg4 {[%clk 0:00:43.9]} 17... Bf6 {[%clk 0:01:52.7]} 18. h4 {[%clk
0:00:08.3]} 18... O-O {[%clk 0:01:42.7]} 19. h5 {[%clk 0:00:07.4]} 19... Nd3
{[%clk 0:01:36.3]} 20. Rd1 {[%clk 0:00:06.5]} 20... b4 {[%clk 0:01:16.6]} 21.
Ne2 {[%clk 0:00:06.4]} 21... Nxc1 {[%clk 0:01:02.7]} 22. Rxc1 {[%clk 0:00:05.8]}
22... Bxb2 {[%clk 0:01:03.2]} 23. Rb1 {[%clk 0:00:04.9]} 23... c3 {[%clk
0:00:58.3]} 24. h6 {[%clk 0:00:04]} 24... g6 {[%clk 0:00:57.7]} 25. e5 {[%clk
0:00:03.9]} 25... Qxg2# {[%clk 0:00:56.5]} 0-1

[Event "*** Titled Tuesday Blitz"]
[Site "Chess.com"]
[Date "2021.04.06"]
[Round "11"]
[White "Oglob71"]
[Black "NishaOnYoutube"]
[Result "1-0"]
[WhiteElo "2381"]
[BlackElo "2266"]
[TimeControl "180+1"]
[EndTime "12:06:14 PDT"]
[Termination "Oglob71 won on time"]

1. d4 {[%clk 0:03:00.9]} 1... f5 {[%clk 0:02:59.1]} 2. g3 {[%clk 0:02:59.4]}
2... g6 {[%clk 0:02:58.3]} 3. Bg2 {[%clk 0:02:59.9]} 3... Bg7 {[%clk 0:02:58.5]}
4. c3 {[%clk 0:03:00.4]} 4... d5 {[%clk 0:02:55.1]} 5. Qb3 {[%clk 0:02:59.2]}
5... c6 {[%clk 0:02:54.6]} 6. Nh3 {[%clk 0:02:59.5]} 6... Nh6 {[%clk 0:02:44.8]}
7. Nd2 {[%clk 0:02:59.1]} 7... Nd7 {[%clk 0:02:37.6]} 8. Nf3 {[%clk 0:02:59.5]}
8... Nf7 {[%clk 0:02:32.3]} 9. Nf4 {[%clk 0:02:59.2]} 9... Nf6 {[%clk
0:02:28.7]} 10. Nd3 {[%clk 0:02:59.1]} 10... Ne4 {[%clk 0:02:26]} 11. Bf4 {[%clk
0:02:58.2]} 11... g5 {[%clk 0:02:06.2]} 12. Be3 {[%clk 0:02:57.1]} 12... g4
{[%clk 0:01:46.4]} 13. Nh4 {[%clk 0:02:53.2]} 13... Bf6 {[%clk 0:01:32.9]} 14.
f3 {[%clk 0:02:52.5]} 14... Bxh4 {[%clk 0:01:28.1]} 15. fxe4 {[%clk 0:02:50.1]}
15... fxe4 {[%clk 0:01:22.3]} 16. gxh4 {[%clk 0:02:50.2]} 16... exd3 {[%clk
0:01:22.5]} 17. exd3 {[%clk 0:02:50.5]} 17... e5 {[%clk 0:01:21.3]} 18. O-O-O
{[%clk 0:02:50.3]} 18... Qxh4 {[%clk 0:01:11]} 19. dxe5 {[%clk 0:02:48.7]} 19...
Nxe5 {[%clk 0:00:55.2]} 20. Bd4 {[%clk 0:02:48.2]} 20... O-O {[%clk 0:00:44.4]}
21. Bxe5 {[%clk 0:02:47]} 21... Qg5+ {[%clk 0:00:44.7]} 22. Kb1 {[%clk
0:02:40.1]} 22... Qxe5 {[%clk 0:00:44.7]} 23. d4 {[%clk 0:02:34.6]} 23... Bf5+
{[%clk 0:00:32]} 24. Ka1 {[%clk 0:02:34.5]} 24... Qc7 {[%clk 0:00:31.8]} 25.
Rhe1 {[%clk 0:02:29.7]} 25... Rae8 {[%clk 0:00:29.7]} 26. Bxd5+ {[%clk
0:02:20.6]} 26... cxd5 {[%clk 0:00:26.2]} 27. Rxe8 {[%clk 0:02:17]} 27... Rxe8
{[%clk 0:00:25.7]} 28. Qxd5+ {[%clk 0:02:17.4]} 28... Be6 {[%clk 0:00:21.5]} 29.
Qg5+ {[%clk 0:02:16.5]} 29... Qg7 {[%clk 0:00:20.3]} 30. Qh5 {[%clk 0:02:16]}
30... Qg6 {[%clk 0:00:18.6]} 31. Qb5 {[%clk 0:02:13.3]} 31... Re7 {[%clk
0:00:17.1]} 32. Re1 {[%clk 0:02:11.7]} 32... Qf6 {[%clk 0:00:12]} 33. Qc5 {[%clk
0:02:10.6]} 33... b6 {[%clk 0:00:09.7]} 34. Qd6 {[%clk 0:02:08.9]} 34... Kf7
{[%clk 0:00:06.5]} 35. d5 {[%clk 0:02:03.5]} 35... Bf5 {[%clk 0:00:04.6]} 36.
Qg3 {[%clk 0:01:57.6]} 36... Rxe1+ {[%clk 0:00:04.1]} 37. Qxe1 {[%clk 0:01:58]}
37... Qd6 {[%clk 0:00:04.3]} 38. Qd2 {[%clk 0:01:54.6]} 38... Be4 {[%clk
0:00:03.1]} 39. c4 {[%clk 0:01:54.4]} 39... b5 {[%clk 0:00:02.6]} 40. Qf2+
{[%clk 0:01:48.2]} 40... Ke7 {[%clk 0:00:02.1]} 41. Qh4+ {[%clk 0:01:47.4]}
41... Kd7 {[%clk 0:00:01.2]} 42. Qxg4+ {[%clk 0:01:46]} 1-0

[Event "*** Titled Tuesday Blitz"]
[Site "Chess.com"]
[Date "2021.04.06"]
[Round "11"]
[White "Eloist"]
[Black "elohunter1999"]
[Result "1-0"]
[WhiteElo "2391"]
[BlackElo "2529"]
[TimeControl "180+1"]
[EndTime "12:06:15 PDT"]
[Termination "Eloist won by resignation"]

1. e4 {[%clk 0:03:00.9]} 1... c6 {[%clk 0:02:54.3]} 2. Nf3 {[%clk 0:03:00.4]}
2... d5 {[%clk 0:02:54.2]} 3. Nc3 {[%clk 0:03:00.7]} 3... dxe4 {[%clk
0:02:54.6]} 4. Nxe4 {[%clk 0:03:00.8]} 4... Nf6 {[%clk 0:02:55.5]} 5. Qe2 {[%clk
0:03:00.4]} 5... Nxe4 {[%clk 0:02:55]} 6. Qxe4 {[%clk 0:03:01.3]} 6... Nd7
{[%clk 0:02:55.1]} 7. Bc4 {[%clk 0:03:01.2]} 7... Nf6 {[%clk 0:02:55.1]} 8. Ne5
{[%clk 0:03:01.6]} 8... e6 {[%clk 0:02:55.1]} 9. Qe2 {[%clk 0:03:01.4]} 9... b5
{[%clk 0:02:55.1]} 10. Bb3 {[%clk 0:02:59.3]} 10... Bd6 {[%clk 0:02:52]} 11. a4
{[%clk 0:02:55.5]} 11... Qc7 {[%clk 0:02:31.2]} 12. d4 {[%clk 0:02:51.4]} 12...
a6 {[%clk 0:02:31.3]} 13. O-O {[%clk 0:02:43.3]} 13... O-O {[%clk 0:02:26.8]}
14. Re1 {[%clk 0:02:40.7]} 14... Bb7 {[%clk 0:02:22]} 15. Bg5 {[%clk 0:02:28.4]}
15... Nd5 {[%clk 0:02:17]} 16. Bd2 {[%clk 0:02:22.4]} 16... c5 {[%clk
0:02:11.3]} 17. dxc5 {[%clk 0:02:19.3]} 17... Bxc5 {[%clk 0:01:59.1]} 18. axb5
{[%clk 0:02:19]} 18... axb5 {[%clk 0:01:56.4]} 19. Rxa8 {[%clk 0:02:01.9]} 19...
Rxa8 {[%clk 0:01:56]} 20. Qxb5 {[%clk 0:01:58.2]} 20... Bd4 {[%clk 0:01:55.5]}
21. Nd3 {[%clk 0:01:41.7]} 21... Ba6 {[%clk 0:01:53.8]} 22. Qa4 {[%clk
0:01:18.7]} 22... Qb6 {[%clk 0:01:44.5]} 23. Ba5 {[%clk 0:01:10.4]} 23... Qa7
{[%clk 0:01:34.9]} 24. Bxd5 {[%clk 0:01:09.8]} 24... Bxd3 {[%clk 0:01:34.8]} 25.
Bxa8 {[%clk 0:01:03.1]} 25... Bxf2+ {[%clk 0:01:33.7]} 26. Kh1 {[%clk
0:01:03.3]} 26... Qxa8 {[%clk 0:01:33.5]} 27. Rd1 {[%clk 0:00:53.2]} 27... Bb6
{[%clk 0:00:56.5]} 28. Rxd3 {[%clk 0:00:47.5]} 28... Bxa5 {[%clk 0:00:56.8]} 29.
b4 {[%clk 0:00:32.3]} 29... h5 {[%clk 0:00:54.7]} 30. Qxa5 {[%clk 0:00:30.3]}
1-0

[Event "*** Titled Tuesday Blitz"]
[Site "Chess.com"]
[Date "2021.04.06"]
[Round "11"]
[White "retropwr"]
[Black "bushrashuaibi"]
[Result "1-0"]
[WhiteElo "2388"]
[BlackElo "2182"]
[TimeControl "180+1"]
[EndTime "12:06:15 PDT"]
[Termination "retropwr won by resignation"]

1. e4 {[%clk 0:03:00.9]} 1... c5 {[%clk 0:02:59.6]} 2. Nf3 {[%clk 0:03:00.5]}
2... Nc6 {[%clk 0:02:59.6]} 3. d4 {[%clk 0:02:58.4]} 3... cxd4 {[%clk
0:03:00.5]} 4. Nxd4 {[%clk 0:02:58.9]} 4... Nf6 {[%clk 0:03:01]} 5. Nc3 {[%clk
0:02:58.4]} 5... e5 {[%clk 0:03:00.3]} 6. Ndb5 {[%clk 0:02:58.2]} 6... d6 {[%clk
0:03:00.8]} 7. Be3 {[%clk 0:02:57.2]} 7... a6 {[%clk 0:02:46.5]} 8. Na3 {[%clk
0:02:57]} 8... b5 {[%clk 0:02:42.4]} 9. Nd5 {[%clk 0:02:56.9]} 9... Rb8 {[%clk
0:02:40.9]} 10. f3 {[%clk 0:02:53.6]} 10... Be6 {[%clk 0:02:34.3]} 11. c4 {[%clk
0:02:51.3]} 11... Bxd5 {[%clk 0:02:28.4]} 12. cxd5 {[%clk 0:02:46.8]} 12... Ne7
{[%clk 0:02:28.5]} 13. Nc2 {[%clk 0:02:44.5]} 13... g6 {[%clk 0:02:28.4]} 14.
Be2 {[%clk 0:02:40.8]} 14... Bg7 {[%clk 0:02:28.4]} 15. O-O {[%clk 0:02:41.1]}
15... O-O {[%clk 0:02:27.3]} 16. Qd2 {[%clk 0:02:40.4]} 16... a5 {[%clk
0:02:11.9]} 17. b4 {[%clk 0:02:34.7]} 17... a4 {[%clk 0:01:58.6]} 18. Na3 {[%clk
0:02:34.7]} 18... Qe8 {[%clk 0:01:41.4]} 19. Rac1 {[%clk 0:02:32.8]} 19... Nh5
{[%clk 0:01:38.2]} 20. Rc7 {[%clk 0:02:06.6]} 20... Nf4 {[%clk 0:01:30.8]} 21.
Rfc1 {[%clk 0:02:03.7]} 21... f5 {[%clk 0:01:25.6]} 22. Bxb5 {[%clk 0:01:58.8]}
22... Rxb5 {[%clk 0:01:14.2]} 23. Rxe7 {[%clk 0:01:46.3]} 23... Qxe7 {[%clk
0:01:10.9]} 24. Nxb5 {[%clk 0:01:46.8]} 24... Rb8 {[%clk 0:00:51.3]} 25. Na7
{[%clk 0:01:44.9]} 25... Rf8 {[%clk 0:00:26.5]} 26. Nc6 {[%clk 0:01:42.5]} 26...
Qg5 {[%clk 0:00:25.6]} 27. Bxf4 {[%clk 0:01:41]} 27... exf4 {[%clk 0:00:25]} 28.
Qd3 {[%clk 0:01:32.5]} 28... fxe4 {[%clk 0:00:24.5]} 29. Qxe4 {[%clk 0:01:32.3]}
29... Be5 {[%clk 0:00:24]} 30. Nxe5 {[%clk 0:01:29.5]} 30... Qxe5 {[%clk
0:00:22.6]} 31. Qxe5 {[%clk 0:01:29]} 31... dxe5 {[%clk 0:00:23.5]} 32. Re1
{[%clk 0:01:23.4]} 32... Rb8 {[%clk 0:00:23.1]} 33. a3 {[%clk 0:01:23.1]} 33...
Re8 {[%clk 0:00:18.7]} 34. Re4 {[%clk 0:01:20.8]} 34... Kf7 {[%clk 0:00:19.1]}
35. b5 {[%clk 0:01:21.1]} 35... Kf6 {[%clk 0:00:19.4]} 36. Rxa4 {[%clk 0:01:21]}
36... Rb8 {[%clk 0:00:18.5]} 37. Rb4 {[%clk 0:01:20.8]} 37... Rb6 {[%clk
0:00:18]} 38. a4 {[%clk 0:01:20.8]} 38... Ke7 {[%clk 0:00:17.5]} 39. a5 {[%clk
0:01:20.9]} 39... Rb7 {[%clk 0:00:17.9]} 40. b6 {[%clk 0:01:20.1]} 40... Kd6
{[%clk 0:00:18]} 41. a6 {[%clk 0:01:20.6]} 41... Re7 {[%clk 0:00:16.9]} 42. b7
{[%clk 0:01:20.6]} 42... Kxd5 {[%clk 0:00:17.2]} 43. b8=Q {[%clk 0:01:20.4]} 1-0